[Event "*** Titled Tuesday Blitz"]
[Site "Chess.com"]
[Date "2020.11.03"]
[Round "6"]
[White "Misticpikachu"]
[Black "Kaslask"]
[Result "1-0"]
[WhiteElo "2497"]
[BlackElo "2298"]
[TimeControl "180+1"]
[EndTime "11:09:48 PST"]
[Termination "Misticpikachu won by resignation"]

1. c4 {[%clk 0:03:00.9]} 1... Nf6 {[%clk 0:02:58.6]} 2. Nc3 {[%clk 0:03:01.4]}
2... g6 {[%clk 0:02:58.6]} 3. e4 {[%clk 0:03:01.9]} 3... d6 {[%clk 0:02:58]} 4.
d4 {[%clk 0:03:02.4]} 4... Bg7 {[%clk 0:02:58.5]} 5. h3 {[%clk 0:03:03]} 5...
O-O {[%clk 0:02:57.8]} 6. Be3 {[%clk 0:03:03.6]} 6... e5 {[%clk 0:02:57]} 7. d5
{[%clk 0:03:04.2]} 7... a5 {[%clk 0:02:56.2]} 8. g4 {[%clk 0:03:04.8]} 8... Na6
{[%clk 0:02:56.1]} 9. Nge2 {[%clk 0:03:05.4]} 9... c6 {[%clk 0:02:53.4]} 10. Ng3
{[%clk 0:03:05.4]} 10... cxd5 {[%clk 0:02:49.1]} 11. cxd5 {[%clk 0:03:06.3]}
11... Nc5 {[%clk 0:02:45.6]} 12. Qd2 {[%clk 0:03:06.5]} 12... a4 {[%clk
0:02:44.7]} 13. f3 {[%clk 0:03:06.6]} 13... Qa5 {[%clk 0:02:43.2]} 14. h4 {[%clk
0:03:04.8]} 14... Bd7 {[%clk 0:02:42.4]} 15. h5 {[%clk 0:03:02.3]} 15... Rfc8
{[%clk 0:02:41.8]} 16. h6 {[%clk 0:02:46.7]} 16... Bf8 {[%clk 0:02:30.2]} 17. g5
{[%clk 0:02:28.8]} 17... Ne8 {[%clk 0:02:27.7]} 18. Be2 {[%clk 0:01:38.8]} 18...
b5 {[%clk 0:02:25.7]} 19. Nd1 {[%clk 0:01:36.9]} 19... b4 {[%clk 0:02:17.7]} 20.
Nf2 {[%clk 0:01:32.2]} 20... Bb5 {[%clk 0:02:12.8]} 21. O-O {[%clk 0:01:31.6]}
21... Nd7 {[%clk 0:01:52.5]} 22. Rac1 {[%clk 0:01:21.6]} 22... Be7 {[%clk
0:01:51]} 23. Rxc8 {[%clk 0:01:08]} 23... Rxc8 {[%clk 0:01:49.9]} 24. a3 {[%clk
0:01:08.5]} 24... Bxe2 {[%clk 0:01:48.6]} 25. Nxe2 {[%clk 0:01:04.1]} 25... Rb8
{[%clk 0:01:44.1]} 26. Nd3 {[%clk 0:01:00.6]} 26... Nc5 {[%clk 0:01:27]} 27.
axb4 {[%clk 0:00:43.4]} 27... Qb5 {[%clk 0:01:15.1]} 28. bxc5 {[%clk 0:00:42.2]}
28... dxc5 {[%clk 0:01:15.3]} 29. Nc3 {[%clk 0:00:40.3]} 29... Qc4 {[%clk
0:01:13.3]} 30. Nxe5 {[%clk 0:00:34.8]} 30... Qb3 {[%clk 0:01:13.3]} 31. Nc6
{[%clk 0:00:34.4]} 31... Rb7 {[%clk 0:01:10.8]} 32. Nxe7+ {[%clk 0:00:31.7]}
32... Rxe7 {[%clk 0:01:10.5]} 33. Bxc5 {[%clk 0:00:31.3]} 33... Rb7 {[%clk
0:01:08.9]} 34. Ba3 {[%clk 0:00:31.1]} 34... Qc4 {[%clk 0:01:06.5]} 35. Qe3
{[%clk 0:00:24.6]} 35... Qc7 {[%clk 0:01:06.1]} 36. Kg2 {[%clk 0:00:23.3]} 36...
Nd6 {[%clk 0:01:05.6]} 37. Bxd6 {[%clk 0:00:21.8]} 37... Qxd6 {[%clk 0:01:05.6]}
38. e5 {[%clk 0:00:21.5]} 38... Qd8 {[%clk 0:01:01.8]} 39. Rf2 {[%clk
0:00:19.2]} 39... Rb3 {[%clk 0:01:00.6]} 40. e6 {[%clk 0:00:18.7]} 40... a3
{[%clk 0:00:59.1]} 41. exf7+ {[%clk 0:00:18.1]} 41... Kxf7 {[%clk 0:00:58.1]}
42. bxa3 {[%clk 0:00:17.3]} 42... Rxc3 {[%clk 0:00:56.1]} 43. Qxc3 {[%clk
0:00:13.1]} 43... Qxg5+ {[%clk 0:00:55.7]} 44. Kf1 {[%clk 0:00:13.5]} 1-0

[Event "*** Titled Tuesday Blitz"]
[Site "Chess.com"]
[Date "2020.11.03"]
[Round "6"]
[White "anasta10"]
[Black "albi1999"]
[Result "0-1"]
[WhiteElo "2397"]
[BlackElo "2579"]
[TimeControl "180+1"]
[EndTime "11:09:53 PST"]
[Termination "albi1999 won by resignation"]

1. d4 {[%clk 0:03:00.9]} 1... Nf6 {[%clk 0:02:56.9]} 2. c4 {[%clk 0:02:56.6]}
2... e6 {[%clk 0:02:55.3]} 3. Nc3 {[%clk 0:02:53.5]} 3... Bb4 {[%clk 0:02:54.8]}
4. Bd2 {[%clk 0:02:52]} 4... O-O {[%clk 0:02:54.6]} 5. Nf3 {[%clk 0:02:46.7]}
5... Bxc3 {[%clk 0:02:52.1]} 6. Bxc3 {[%clk 0:02:46.3]} 6... Ne4 {[%clk
0:02:52.7]} 7. Qc2 {[%clk 0:02:44.4]} 7... Nxc3 {[%clk 0:02:52.5]} 8. Qxc3
{[%clk 0:02:45.3]} 8... d6 {[%clk 0:02:53.4]} 9. Rd1 {[%clk 0:02:43.7]} 9... b6
{[%clk 0:02:53.6]} 10. g3 {[%clk 0:02:39]} 10... Bb7 {[%clk 0:02:53.3]} 11. Bg2
{[%clk 0:02:39.6]} 11... Nd7 {[%clk 0:02:53.3]} 12. O-O {[%clk 0:02:39.7]} 12...
Qe7 {[%clk 0:02:53.8]} 13. Rfe1 {[%clk 0:02:38.7]} 13... Be4 {[%clk 0:02:52]}
14. b4 {[%clk 0:02:31.6]} 14... a5 {[%clk 0:02:50.2]} 15. a3 {[%clk 0:02:30.8]}
15... axb4 {[%clk 0:02:49.7]} 16. axb4 {[%clk 0:02:31.7]} 16... Nf6 {[%clk
0:02:37.8]} 17. Ra1 {[%clk 0:02:30.6]} 17... h6 {[%clk 0:02:37.2]} 18. h3 {[%clk
0:02:29.6]} 18... c6 {[%clk 0:02:28.2]} 19. Nd2 {[%clk 0:02:25.6]} 19... Bxg2
{[%clk 0:02:27.4]} 20. Kxg2 {[%clk 0:02:26.5]} 20... e5 {[%clk 0:02:24.8]} 21.
e3 {[%clk 0:02:22.8]} 21... e4 {[%clk 0:02:20.1]} 22. Ra3 {[%clk 0:02:17]} 22...
Qe6 {[%clk 0:02:18.6]} 23. Rea1 {[%clk 0:02:14.7]} 23... Rab8 {[%clk 0:02:15.5]}
24. Ra7 {[%clk 0:02:13.4]} 24... Qf5 {[%clk 0:02:14.9]} 25. Rc7 {[%clk
0:02:08.7]} 25... Rfc8 {[%clk 0:02:10.4]} 26. Raa7 {[%clk 0:02:07]} 26... Rxc7
{[%clk 0:02:06.6]} 27. Rxc7 {[%clk 0:02:07.9]} 27... Rc8 {[%clk 0:02:03.2]} 28.
Ra7 {[%clk 0:02:02]} 28... b5 {[%clk 0:02:02.4]} 29. Qb3 {[%clk 0:01:44.7]}
29... bxc4 {[%clk 0:01:43]} 30. Qxc4 {[%clk 0:01:45.6]} 30... d5 {[%clk
0:01:38.1]} 31. Qc5 {[%clk 0:01:34.1]} 31... h5 {[%clk 0:01:35.2]} 32. Qe7
{[%clk 0:01:25]} 32... Nh7 {[%clk 0:01:28.6]} 33. Rc7 {[%clk 0:01:07.1]} 33...
Rxc7 {[%clk 0:01:20.8]} 34. Qxc7 {[%clk 0:01:08]} 34... Ng5 {[%clk 0:01:18.8]}
35. Qf4 {[%clk 0:00:40.5]} 35... Qxh3+ {[%clk 0:01:17.5]} 36. Kg1 {[%clk
0:00:39]} 36... f6 {[%clk 0:01:14.1]} 37. f3 {[%clk 0:00:34.3]} 37... Qe6 {[%clk
0:01:06.7]} 38. Qb8+ {[%clk 0:00:17.1]} 38... Kh7 {[%clk 0:01:06.3]} 39. fxe4
{[%clk 0:00:17.2]} 39... dxe4 {[%clk 0:01:03.3]} 40. Qc7 {[%clk 0:00:03.4]}
40... Qg4 {[%clk 0:01:01.4]} 41. Kg2 {[%clk 0:00:02.8]} 41... Qe2+ {[%clk
0:01:01.2]} 0-1

[Event "*** Titled Tuesday Blitz"]
[Site "Chess.com"]
[Date "2020.11.03"]
[Round "6"]
[White "talyamania"]
[Black "IceBelka"]
[Result "0-1"]
[WhiteElo "2358"]
[BlackElo "2186"]
[TimeControl "180+1"]
[EndTime "11:09:54 PST"]
[Termination "IceBelka won by resignation"]

1. e4 {[%clk 0:03:00.9]} 1... c6 {[%clk 0:02:56.5]} 2. d4 {[%clk 0:03:00]} 2...
d5 {[%clk 0:02:55.9]} 3. Nd2 {[%clk 0:02:59.9]} 3... dxe4 {[%clk 0:02:54.3]} 4.
Nxe4 {[%clk 0:03:00]} 4... Bf5 {[%clk 0:02:49]} 5. Ng3 {[%clk 0:02:59.6]} 5...
Bg6 {[%clk 0:02:49]} 6. h4 {[%clk 0:02:59.5]} 6... h6 {[%clk 0:02:48.7]} 7. Nf3
{[%clk 0:02:59]} 7... Nd7 {[%clk 0:02:48.6]} 8. h5 {[%clk 0:02:58.5]} 8... Bh7
{[%clk 0:02:48.2]} 9. Bd3 {[%clk 0:02:59]} 9... Bxd3 {[%clk 0:02:47.8]} 10. Qxd3
{[%clk 0:02:59.9]} 10... Ngf6 {[%clk 0:02:45.2]} 11. Bf4 {[%clk 0:02:59.3]}
11... Qa5+ {[%clk 0:02:36.6]} 12. Bd2 {[%clk 0:02:58.9]} 12... Qc7 {[%clk
0:02:36.5]} 13. O-O-O {[%clk 0:02:58.3]} 13... e6 {[%clk 0:02:36.4]} 14. Kb1
{[%clk 0:02:54]} 14... Bd6 {[%clk 0:02:34.7]} 15. Ne4 {[%clk 0:02:53.2]} 15...
Nxe4 {[%clk 0:02:34.8]} 16. Qxe4 {[%clk 0:02:52.6]} 16... Nf6 {[%clk 0:02:35.4]}
17. Qe2 {[%clk 0:02:52.3]} 17... O-O-O {[%clk 0:02:34.7]} 18. g3 {[%clk
0:02:51.5]} 18... c5 {[%clk 0:02:32.6]} 19. c4 {[%clk 0:02:47.6]} 19... cxd4
{[%clk 0:02:30.2]} 20. Nxd4 {[%clk 0:02:45.1]} 20... a6 {[%clk 0:02:30.4]} 21.
Nb3 {[%clk 0:02:44]} 21... Qc6 {[%clk 0:02:24]} 22. Ba5 {[%clk 0:02:34.4]} 22...
Bc7 {[%clk 0:02:20]} 23. Bxc7 {[%clk 0:02:24.3]} 23... Kxc7 {[%clk 0:02:18.6]}
24. Qe5+ {[%clk 0:02:04.7]} 24... Kc8 {[%clk 0:02:17.6]} 25. f4 {[%clk
0:01:10.8]} 25... Qe4+ {[%clk 0:02:14.7]} 26. Qxe4 {[%clk 0:01:07.5]} 26... Nxe4
{[%clk 0:02:15.6]} 27. g4 {[%clk 0:01:02.8]} 27... Nf2 {[%clk 0:01:50.3]} 28.
Rxd8+ {[%clk 0:01:01.1]} 28... Rxd8 {[%clk 0:01:51.2]} 29. Rg1 {[%clk 0:00:59]}
29... Rd1+ {[%clk 0:01:49.9]} 30. Rxd1 {[%clk 0:00:57.3]} 30... Nxd1 {[%clk
0:01:50.8]} 31. Nd2 {[%clk 0:00:39.6]} 31... Ne3 {[%clk 0:01:45]} 32. g5 {[%clk
0:00:38.4]} 32... Ng2 {[%clk 0:01:44.7]} 33. gxh6 {[%clk 0:00:19.6]} 33... gxh6
{[%clk 0:01:45.6]} 34. Ne4 {[%clk 0:00:18.8]} 34... Kd7 {[%clk 0:01:35]} 35.
Nf6+ {[%clk 0:00:14.6]} 35... Kd6 {[%clk 0:01:26.5]} 36. Ng8 {[%clk 0:00:13.3]}
36... Nxf4 {[%clk 0:01:24.8]} 37. Nxh6 {[%clk 0:00:13.1]} 37... f5 {[%clk
0:01:20.4]} 38. Nf7+ {[%clk 0:00:12]} 38... Ke7 {[%clk 0:01:18.3]} 39. Ne5
{[%clk 0:00:10.5]} 39... Nxh5 {[%clk 0:01:17.3]} 40. c5 {[%clk 0:00:10.7]} 40...
Nf6 {[%clk 0:01:11.6]} 41. Kc2 {[%clk 0:00:09.7]} 41... Nd7 {[%clk 0:01:10.7]}
42. c6 {[%clk 0:00:09.1]} 42... Nxe5 {[%clk 0:01:07.6]} 43. cxb7 {[%clk
0:00:08.6]} 43... Nc6 {[%clk 0:01:03]} 44. b4 {[%clk 0:00:07.9]} 44... Kd7
{[%clk 0:01:02.1]} 0-1

[Event "*** Titled Tuesday Blitz"]
[Site "Chess.com"]
[Date "2020.11.03"]
[Round "6"]
[White "Quiet_Desperation"]
[Black "Goryachkina"]
[Result "0-1"]
[WhiteElo "1831"]
[BlackElo "2595"]
[TimeControl "180+1"]
[EndTime "11:09:55 PST"]
[Termination "Goryachkina won by resignation"]

1. e4 {[%clk 0:03:00.9]} 1... c5 {[%clk 0:02:53.6]} 2. Nf3 {[%clk 0:03:01]} 2...
d6 {[%clk 0:02:52.9]} 3. d4 {[%clk 0:03:01.5]} 3... cxd4 {[%clk 0:02:52.6]} 4.
Nxd4 {[%clk 0:03:02.4]} 4... Nf6 {[%clk 0:02:52.4]} 5. Nc3 {[%clk 0:03:02.9]}
5... e5 {[%clk 0:02:51.7]} 6. Nb3 {[%clk 0:02:53.3]} 6... Be7 {[%clk 0:02:50.1]}
7. f3 {[%clk 0:02:53.1]} 7... Be6 {[%clk 0:02:48.5]} 8. Be3 {[%clk 0:02:53.1]}
8... O-O {[%clk 0:02:44.6]} 9. Qd2 {[%clk 0:02:53.3]} 9... a5 {[%clk 0:02:42.7]}
10. a4 {[%clk 0:02:40.5]} 10... d5 {[%clk 0:02:29.3]} 11. exd5 {[%clk
0:02:40.3]} 11... Nxd5 {[%clk 0:02:28.6]} 12. Nxd5 {[%clk 0:02:40.8]} 12... Bxd5
{[%clk 0:02:25.5]} 13. Rd1 {[%clk 0:02:11.4]} 13... Bxb3 {[%clk 0:02:09.3]} 14.
Qxd8 {[%clk 0:02:09.7]} 14... Rxd8 {[%clk 0:02:05.6]} 15. Rxd8+ {[%clk
0:02:09.7]} 15... Bxd8 {[%clk 0:02:06.5]} 16. cxb3 {[%clk 0:02:09.6]} 16... Nc6
{[%clk 0:02:01.4]} 17. Bc4 {[%clk 0:02:05.9]} 17... h6 {[%clk 0:01:51.8]} 18.
Kf2 {[%clk 0:01:56.2]} 18... Bg5 {[%clk 0:01:48.3]} 19. Bxg5 {[%clk 0:01:51.6]}
19... hxg5 {[%clk 0:01:48.3]} 20. Re1 {[%clk 0:01:39]} 20... Rd8 {[%clk
0:01:43.5]} 21. Re2 {[%clk 0:01:20.3]} 21... Kf8 {[%clk 0:01:36.4]} 22. Bb5
{[%clk 0:01:16.1]} 22... f6 {[%clk 0:01:22.8]} 23. Bxc6 {[%clk 0:01:14.3]} 23...
bxc6 {[%clk 0:01:23.7]} 24. Rc2 {[%clk 0:01:14.4]} 24... Rd3 {[%clk 0:01:16.8]}
25. Rxc6 {[%clk 0:01:01.7]} 25... Rxb3 {[%clk 0:01:16.6]} 26. Rc5 {[%clk
0:00:56.1]} 26... Rxb2+ {[%clk 0:01:16.5]} 27. Kg3 {[%clk 0:00:53.6]} 27... Ra2
{[%clk 0:01:13.8]} 28. Rxa5 {[%clk 0:00:53.5]} 28... Kf7 {[%clk 0:01:14.1]} 29.
Ra6 {[%clk 0:00:48.6]} 29... Kg6 {[%clk 0:01:12.6]} 30. h3 {[%clk 0:00:45.5]}
30... Kf5 {[%clk 0:01:09.4]} 31. Kh2 {[%clk 0:00:45]} 31... Kf4 {[%clk 0:01:09]}
32. Ra7 {[%clk 0:00:42.3]} 32... g6 {[%clk 0:00:58.2]} 33. Rf7 {[%clk
0:00:40.9]} 33... f5 {[%clk 0:00:50.6]} 34. Rg7 {[%clk 0:00:38.8]} 34... Rxa4
{[%clk 0:00:43.6]} 35. Rxg6 {[%clk 0:00:38.6]} 35... e4 {[%clk 0:00:42.9]} 36.
fxe4 {[%clk 0:00:38.3]} 36... fxe4 {[%clk 0:00:43.1]} 37. Re6 {[%clk 0:00:31]}
37... e3 {[%clk 0:00:40.2]} 38. Re8 {[%clk 0:00:19.5]} 38... Re4 {[%clk
0:00:33.2]} 39. Rxe4+ {[%clk 0:00:15.2]} 39... Kxe4 {[%clk 0:00:33.2]} 40. Kg1
{[%clk 0:00:15.3]} 40... Kd3 {[%clk 0:00:33.4]} 41. Kf1 {[%clk 0:00:15.7]} 41...
Kd2 {[%clk 0:00:33.7]} 0-1

[Event "*** Titled Tuesday Blitz"]
[Site "Chess.com"]
[Date "2020.11.03"]
[Round "6"]
[White "TheCavemanChesss"]
[Black "olksuna"]
[Result "0-1"]
[WhiteElo "2464"]
[BlackElo "2617"]
[TimeControl "180+1"]
[EndTime "11:09:56 PST"]
[Termination "olksuna won by resignation"]

1. e4 {[%clk 0:03:00.9]} 1... Nf6 {[%clk 0:02:59.6]} 2. Nc3 {[%clk 0:02:59.4]}
2... d5 {[%clk 0:02:59.3]} 3. e5 {[%clk 0:03:00]} 3... d4 {[%clk 0:02:58.7]} 4.
Nce2 {[%clk 0:02:48.1]} 4... Ng4 {[%clk 0:02:51.9]} 5. f4 {[%clk 0:02:26.8]}
5... c5 {[%clk 0:02:51.6]} 6. Nf3 {[%clk 0:02:26.9]} 6... h5 {[%clk 0:02:47.6]}
7. g3 {[%clk 0:02:24.3]} 7... Nc6 {[%clk 0:02:43.6]} 8. Bg2 {[%clk 0:02:23.1]}
8... Bf5 {[%clk 0:02:40.4]} 9. h3 {[%clk 0:02:21.5]} 9... Nh6 {[%clk 0:02:38.9]}
10. O-O {[%clk 0:02:21.7]} 10... e6 {[%clk 0:02:33.3]} 11. d3 {[%clk 0:02:21]}
11... Be7 {[%clk 0:02:33.1]} 12. Kh1 {[%clk 0:01:57.4]} 12... Bh7 {[%clk
0:02:30.1]} 13. Kg1 {[%clk 0:01:54.8]} 13... Nf5 {[%clk 0:02:26.4]} 14. g4
{[%clk 0:01:43]} 14... hxg4 {[%clk 0:02:22.5]} 15. hxg4 {[%clk 0:01:43.9]} 15...
Nh4 {[%clk 0:02:16]} 16. Ng3 {[%clk 0:01:31.7]} 16... Nxg2 {[%clk 0:02:11.7]}
17. Kxg2 {[%clk 0:01:32.6]} 17... Qd5 {[%clk 0:02:10]} 18. Rh1 {[%clk
0:01:09.4]} 18... O-O-O {[%clk 0:02:08.2]} 19. Bd2 {[%clk 0:01:09.1]} 19... g5
{[%clk 0:02:05]} 20. Qe2 {[%clk 0:00:59.1]} 20... gxf4 {[%clk 0:01:59.6]} 21.
Bxf4 {[%clk 0:01:00]} 21... Rdg8 {[%clk 0:01:50.8]} 22. g5 {[%clk 0:00:19.1]}
22... Bxg5 {[%clk 0:01:50.6]} 23. Bxg5 {[%clk 0:00:20]} 23... Rxg5 {[%clk
0:01:50.3]} 24. Kf2 {[%clk 0:00:20.9]} 24... Rgg8 {[%clk 0:01:30]} 25. Rh3
{[%clk 0:00:21.1]} 25... Bg6 {[%clk 0:01:18.9]} 26. Rah1 {[%clk 0:00:21.4]}
26... Rxh3 {[%clk 0:01:17.3]} 27. Rxh3 {[%clk 0:00:22.3]} 27... Qxa2 {[%clk
0:01:17.7]} 28. b3 {[%clk 0:00:22.1]} 28... Nb4 {[%clk 0:01:16]} 29. Ne1 {[%clk
0:00:22.5]} 29... Nd5 {[%clk 0:01:12.9]} 30. Ne4 {[%clk 0:00:22.4]} 30... Bxe4
{[%clk 0:01:10.5]} 31. Qxe4 {[%clk 0:00:21.8]} 31... Qa5 {[%clk 0:00:55.5]} 32.
Rf3 {[%clk 0:00:19.7]} 32... Qd2+ {[%clk 0:00:50]} 33. Qe2 {[%clk 0:00:16.8]}
33... Qh6 {[%clk 0:00:48.1]} 34. Ng2 {[%clk 0:00:06.4]} 34... Qh2 {[%clk
0:00:46.1]} 35. Qf1 {[%clk 0:00:06.5]} 35... Ne3 {[%clk 0:00:44.8]} 36. Rxe3
{[%clk 0:00:04.9]} 36... dxe3+ {[%clk 0:00:43.8]} 37. Kxe3 {[%clk 0:00:05.8]}
37... Qxg2 {[%clk 0:00:40.9]} 38. Qxf7 {[%clk 0:00:06.7]} 38... Qg5+ {[%clk
0:00:39]} 39. Ke4 {[%clk 0:00:06.5]} 39... Qg6+ {[%clk 0:00:38.9]} 0-1

[Event "*** Titled Tuesday Blitz"]
[Site "Chess.com"]
[Date "2020.11.03"]
[Round "6"]
[White "enriquebutti"]
[Black "politeplayer"]
[Result "1-0"]
[WhiteElo "1997"]
[BlackElo "2228"]
[TimeControl "180+1"]
[EndTime "11:09:56 PST"]
[Termination "enriquebutti won by checkmate"]

1. e4 {[%clk 0:03:00.9]} 1... c5 {[%clk 0:02:58.8]} 2. Nf3 {[%clk 0:03:00.8]}
2... e6 {[%clk 0:02:58.4]} 3. c3 {[%clk 0:03:01.1]} 3... Nf6 {[%clk 0:02:56.8]}
4. e5 {[%clk 0:03:00.6]} 4... Nd5 {[%clk 0:02:56.1]} 5. d4 {[%clk 0:03:01.5]}
5... cxd4 {[%clk 0:02:55.5]} 6. cxd4 {[%clk 0:03:02.4]} 6... d6 {[%clk
0:02:54.1]} 7. Nc3 {[%clk 0:03:02.7]} 7... Nxc3 {[%clk 0:02:53.2]} 8. bxc3
{[%clk 0:03:03.6]} 8... dxe5 {[%clk 0:02:53.7]} 9. Nxe5 {[%clk 0:03:04.5]} 9...
Nd7 {[%clk 0:02:52.9]} 10. Nc4 {[%clk 0:03:00.8]} 10... b6 {[%clk 0:02:44.4]}
11. Bf4 {[%clk 0:02:59.6]} 11... Bb7 {[%clk 0:02:43.3]} 12. Nd6+ {[%clk
0:02:50.6]} 12... Bxd6 {[%clk 0:02:42.6]} 13. Bxd6 {[%clk 0:02:51.5]} 13... Rc8
{[%clk 0:02:32.2]} 14. Qg4 {[%clk 0:02:48.5]} 14... Nf6 {[%clk 0:02:07.9]} 15.
Bb5+ {[%clk 0:02:47.6]} 15... Bc6 {[%clk 0:02:06.1]} 16. Bxc6+ {[%clk
0:02:46.1]} 16... Rxc6 {[%clk 0:02:06.1]} 17. Qxg7 {[%clk 0:02:43.9]} 17... Rg8
{[%clk 0:02:03.3]} 18. Qh6 {[%clk 0:02:43.8]} 18... Rg6 {[%clk 0:01:31.7]} 19.
Qd2 {[%clk 0:02:41.2]} 19... Qxd6 {[%clk 0:01:30.3]} 20. O-O {[%clk 0:02:41.5]}
20... Nd5 {[%clk 0:01:25.1]} 21. Rac1 {[%clk 0:02:40.2]} 21... Qf4 {[%clk
0:01:19.5]} 22. Qd3 {[%clk 0:02:39.2]} 22... Rxg2+ {[%clk 0:01:09.3]} 23. Kxg2
{[%clk 0:02:38.3]} 23... Qxc1 {[%clk 0:01:09.1]} 24. Qxh7 {[%clk 0:02:28.2]}
24... Qg5+ {[%clk 0:00:54.1]} 25. Kh1 {[%clk 0:02:26.9]} 25... Rxc3 {[%clk
0:00:51.2]} 26. Rg1 {[%clk 0:02:16.7]} 26... Rc1 {[%clk 0:00:42.8]} 27. Qh8+
{[%clk 0:02:08.5]} 27... Kd7 {[%clk 0:00:40.1]} 28. Rxc1 {[%clk 0:02:05.8]}
28... Qxc1+ {[%clk 0:00:39.5]} 29. Kg2 {[%clk 0:02:06.7]} 29... Qg5+ {[%clk
0:00:37.8]} 30. Kf1 {[%clk 0:02:07]} 30... Qf6 {[%clk 0:00:27.6]} 31. Qb8 {[%clk
0:02:04]} 31... a5 {[%clk 0:00:27.3]} 32. Qb7+ {[%clk 0:02:02.3]} 32... Ke8
{[%clk 0:00:27.2]} 33. Qc6+ {[%clk 0:02:00.4]} 33... Kf8 {[%clk 0:00:25.6]} 34.
Qd6+ {[%clk 0:02:00.6]} 34... Kg7 {[%clk 0:00:23.1]} 35. Qg3+ {[%clk 0:02:01]}
35... Qg6 {[%clk 0:00:21]} 36. Qe5+ {[%clk 0:02:00.8]} 36... Kh7 {[%clk
0:00:21.3]} 37. h4 {[%clk 0:01:59]} 37... a4 {[%clk 0:00:20.4]} 38. h5 {[%clk
0:01:59.1]} 38... Qd3+ {[%clk 0:00:20.1]} 39. Kg2 {[%clk 0:01:59.4]} 39... a3
{[%clk 0:00:19.5]} 40. Qg5 {[%clk 0:01:42.3]} 40... Qf5 {[%clk 0:00:18.2]} 41.
Qd8 {[%clk 0:01:39.5]} 41... Nf4+ {[%clk 0:00:17.8]} 42. Kf1 {[%clk 0:01:38.8]}
42... Qd3+ {[%clk 0:00:17]} 43. Kg1 {[%clk 0:01:38.2]} 43... Qb1+ {[%clk
0:00:16.5]} 44. Kh2 {[%clk 0:01:37.4]} 44... Qxa2 {[%clk 0:00:16.9]} 45. Kg3
{[%clk 0:01:33.2]} 45... Nd5 {[%clk 0:00:16.3]} 46. Qf8 {[%clk 0:01:31.8]} 46...
Qb3+ {[%clk 0:00:16]} 47. f3 {[%clk 0:01:31.2]} 47... a2 {[%clk 0:00:09.1]} 48.
Qxf7+ {[%clk 0:01:17.7]} 48... Kh6 {[%clk 0:00:09]} 49. Qg6# {[%clk 0:01:17.3]}
1-0

[Event "*** Titled Tuesday Blitz"]
[Site "Chess.com"]
[Date "2020.11.03"]
[Round "6"]
[White "paulrusan"]
[Black "Mikasinski"]
[Result "1-0"]
[WhiteElo "2209"]
[BlackElo "2453"]
[TimeControl "180+1"]
[EndTime "11:09:57 PST"]
[Termination "paulrusan won by checkmate"]

1. e4 {[%clk 0:03:00.9]} 1... c5 {[%clk 0:03:00]} 2. b4 {[%clk 0:03:00.6]} 2...
cxb4 {[%clk 0:02:59.4]} 3. Bb2 {[%clk 0:03:01.1]} 3... d5 {[%clk 0:02:59.4]} 4.
exd5 {[%clk 0:03:01.1]} 4... Nf6 {[%clk 0:02:59.5]} 5. Bb5+ {[%clk 0:03:00.7]}
5... Bd7 {[%clk 0:02:59.3]} 6. Bc4 {[%clk 0:03:01.3]} 6... b5 {[%clk 0:02:57.9]}
7. Bb3 {[%clk 0:03:01.6]} 7... a5 {[%clk 0:02:58.4]} 8. a4 {[%clk 0:03:01.7]}
8... bxa3 {[%clk 0:02:57.9]} 9. Nxa3 {[%clk 0:03:00.9]} 9... a4 {[%clk
0:02:57.8]} 10. Ba2 {[%clk 0:03:00.8]} 10... b4 {[%clk 0:02:49.5]} 11. Nc4
{[%clk 0:02:57.8]} 11... a3 {[%clk 0:02:49]} 12. Bxf6 {[%clk 0:02:46.8]} 12...
gxf6 {[%clk 0:02:43.3]} 13. Ne2 {[%clk 0:02:36.8]} 13... Rg8 {[%clk 0:02:30.3]}
14. O-O {[%clk 0:02:32.9]} 14... Qc7 {[%clk 0:01:58.9]} 15. Re1 {[%clk
0:02:20.7]} 15... Kd8 {[%clk 0:01:35.8]} 16. Ng3 {[%clk 0:01:55.8]} 16... f5
{[%clk 0:01:28.3]} 17. Qh5 {[%clk 0:01:48.6]} 17... Rg6 {[%clk 0:00:43.9]} 18.
Nxf5 {[%clk 0:01:42.6]} 18... Qf4 {[%clk 0:00:33.1]} 19. Ng3 {[%clk 0:01:19]}
19... Bg7 {[%clk 0:00:32.5]} 20. Re4 {[%clk 0:01:02.7]} 20... Qc7 {[%clk
0:00:15.5]} 21. Rae1 {[%clk 0:01:00.5]} 21... Bf6 {[%clk 0:00:13]} 22. Qxh7
{[%clk 0:00:48]} 22... Na6 {[%clk 0:00:12.7]} 23. Ne5 {[%clk 0:00:35.1]} 23...
Bxe5 {[%clk 0:00:10.3]} 24. Rxe5 {[%clk 0:00:35.2]} 24... Qxc2 {[%clk
0:00:08.3]} 25. Bb1 {[%clk 0:00:34.1]} 25... Qxd2 {[%clk 0:00:06.9]} 26. Bxg6
{[%clk 0:00:33.5]} 26... fxg6 {[%clk 0:00:07.3]} 27. Qxe7+ {[%clk 0:00:33.5]}
27... Kc7 {[%clk 0:00:04.5]} 28. d6+ {[%clk 0:00:33.2]} 28... Kb6 {[%clk
0:00:02]} 29. Qxd7 {[%clk 0:00:33]} 29... Nc5 {[%clk 0:00:02.4]} 30. Qc7+ {[%clk
0:00:32.2]} 30... Kb5 {[%clk 0:00:02.1]} 31. Qxc5+ {[%clk 0:00:32.3]} 31... Ka4
{[%clk 0:00:02.7]} 32. Rb1 {[%clk 0:00:30.3]} 32... Rb8 {[%clk 0:00:01.6]} 33.
Qa5# {[%clk 0:00:29.9]} 1-0

[Event "*** Titled Tuesday Blitz"]
[Site "Chess.com"]
[Date "2020.11.03"]
[Round "6"]
[White "HouseOfDurin"]
[Black "BigAl"]
[Result "0-1"]
[WhiteElo "2206"]
[BlackElo "2471"]
[TimeControl "180+1"]
[EndTime "11:10:00 PST"]
[Termination "BigAl won on time"]

1. d4 {[%clk 0:03:00.9]} 1... Nf6 {[%clk 0:02:58.5]} 2. Bg5 {[%clk 0:03:01.3]}
2... Ne4 {[%clk 0:02:58.3]} 3. h4 {[%clk 0:03:00.8]} 3... d5 {[%clk 0:02:55.5]}
4. Nd2 {[%clk 0:03:00]} 4... Nxd2 {[%clk 0:02:55.3]} 5. Qxd2 {[%clk 0:03:00.9]}
5... h6 {[%clk 0:02:55.8]} 6. Bf4 {[%clk 0:03:00.3]} 6... Bf5 {[%clk 0:02:56.5]}
7. e3 {[%clk 0:03:00.2]} 7... e6 {[%clk 0:02:57.2]} 8. Bd3 {[%clk 0:03:00.5]}
8... Bxd3 {[%clk 0:02:55.9]} 9. Qxd3 {[%clk 0:03:01.4]} 9... c5 {[%clk
0:02:53.7]} 10. dxc5 {[%clk 0:03:02.3]} 10... Nc6 {[%clk 0:02:38.6]} 11. Qc3
{[%clk 0:03:00.6]} 11... Rc8 {[%clk 0:02:20.4]} 12. b4 {[%clk 0:02:51]} 12...
Be7 {[%clk 0:02:19.9]} 13. Ne2 {[%clk 0:02:05.9]} 13... Bf6 {[%clk 0:02:06.9]}
14. Nd4 {[%clk 0:02:04.8]} 14... Qe7 {[%clk 0:01:50.5]} 15. Bd6 {[%clk
0:01:50.7]} 15... Qd7 {[%clk 0:01:46.3]} 16. Qd2 {[%clk 0:01:39.6]} 16... Be7
{[%clk 0:01:08.3]} 17. Bxe7 {[%clk 0:01:31.8]} 17... Qxe7 {[%clk 0:01:07.6]} 18.
g3 {[%clk 0:00:47.5]} 18... Ne5 {[%clk 0:01:00.7]} 19. O-O {[%clk 0:00:39.7]}
19... O-O {[%clk 0:01:00.3]} 20. f4 {[%clk 0:00:25.7]} 20... Nc4 {[%clk
0:00:59.9]} 21. Qd3 {[%clk 0:00:19]} 21... b6 {[%clk 0:00:52.9]} 22. cxb6 {[%clk
0:00:15.3]} 22... axb6 {[%clk 0:00:51.8]} 23. c3 {[%clk 0:00:15.2]} 23... Nb2
{[%clk 0:00:42.1]} 24. Qd2 {[%clk 0:00:12.4]} 24... Nc4 {[%clk 0:00:41.2]} 25.
Qe2 {[%clk 0:00:09.1]} 25... Nd6 {[%clk 0:00:36.7]} 26. Rfc1 {[%clk 0:00:07.6]}
26... Rc4 {[%clk 0:00:35.1]} 27. b5 {[%clk 0:00:07.2]} 27... Ne4 {[%clk
0:00:32]} 28. Nc6 {[%clk 0:00:04.9]} 28... Qf6 {[%clk 0:00:32]} 29. Qe1 {[%clk
0:00:02.8]} 29... h5 {[%clk 0:00:27.9]} 30. a4 {[%clk 0:00:02.2]} 30... Kh8
{[%clk 0:00:22.4]} 31. Ra3 {[%clk 0:00:02]} 31... Qg6 {[%clk 0:00:21.8]} 0-1